Workbook

Sheet Лист1
A1: Школа | C1: 14 | F1: Согласование: | G1: должность | H1: Директор
A2: Типовое примерное меню приготавливаемых блюд | G2: фамилия | H2: Пустоплеснова О.О.
A3: Возрастная категория | E3: 7-11 лет | G3: дата | H3: 1 | I3: 9 | J3: 2023
H4: день | I4: месяц | J4: год
A5: Неделя | B5: День недели | C5: Прием пищи | D5: Раздел меню | E5: Блюда | F5: Вес блюда, г | G5: Белки | H5: Жиры | I5: Углеводы | J5: Калорийность | K5: № рецептуры | L5: Цена
A6: 1 | B6: 1 | C6: Завтрак | D6: хлеб бел. | E6: Бутерброд с маслом | F6: 40 | G6: 2.36 | H6: 7.49 | I6: 14.89 | J6: 136 | L6: 37.55
D7: хлеб бел. | E7: Батон нарезной | F7: 75 | G7: 5.6 | H7: 2.16 | I7: 38.36 | J7: 195.52
D8: гор.блюдо | E8: Каша "Дружба" молочная с маслом сливочным | F8: 185 | G8: 10.48 | H8: 10.43 | I8: 25.24 | J8: 217.4
D9: гор.напиток | E9: Чай с сахаром и лимоном | F9: 200 | G9: 0.13 | H9: 0.02 | I9: 8.2 | J9: 34.02
D12: итого | F12: =F6+F7+F8+F9 -> 500 | G12: =SUM(G6:G11) -> 18.57 | H12: =SUM(H6:H11) -> 20.1 | I12: =SUM(I6:I11) -> 86.69 | J12: =SUM(J6:J11) -> 582.94 | L12: =SUM(L6:L11) -> 37.55
A13: =A6 -> 1 | B13: =B6 -> 1 | C13: Обед | D13: 1 блюдо | E13: Щи из свежей капусты с картофелем, со сметаной | F13: 205 | G13: 3.74 | H13: 14.71 | I13: 6.5 | J13: 79.9 | L13: 77.59
D14: 2 блюдо | E14: Шницель куриный | F14: 90 | G14: 10.53 | H14: 10.02 | I14: 5.13 | J14: 195.51
D15: гарнир | E15: Макаронные изделия (рожки) отварные с маслом сливочным | F15: 153 | G15: 5.78 | H15: 1.28 | I15: 42.96 | J15: 226.1
D16: напиток | E16: Напиток из сухофруктов | F16: 200 | G16: 0.7 | H16: 0.1 | I16: 32 | J16: 132.8
D17: хлеб бел. | E17: Хлеб пшеничный | F17: 25 | G17: 1.9 | H17: 0.2 | I17: 12.3 | J17: 58.75
D18: хлеб черн. | E18: Хлеб ржаной | F18: 45 | G18: 2.97 | H18: 0.54 | I18: 17.82 | J18: 89.1
D21: итого | F21: =SUM(F13:F20) -> 718 | G21: =SUM(G13:G20) -> 25.62 | H21: =SUM(H13:H20) -> 26.85 | I21: =SUM(I13:I20) -> 116.71 | J21: =SUM(J13:J20) -> 782.16 | L21: =SUM(L13:L20) -> 77.59
A22: =A6 -> 1 | B22: =B6 -> 1 | C22: Итого за день: | F22: =F12+F21 -> 1218 | G22: =G12+G21 -> 44.19 | H22: =H12+H21 -> 46.95 | I22: =I12+I21 -> 203.4 | J22: =J12+J21 -> 1365.1 | L22: =L12+L21 -> 115.14
A23: 1 | B23: 2 | C23: Завтрак | D23: хлеб бел. | E23: Бутерброд с сыром и маслом сливочным | F23: 50 | G23: 6.27 | H23: 7.86 | I23: 14.83 | J23: 155 | L23: 37.55
D24: хлеб бел. | E24: Батон нарезной | F24: 50 | G24: 3.75 | H24: 1.45 | I24: 25.7 | J24: 131
D25: гор.блюдо | E25: Каша геркулнсовая молочная | F25: 200 | G25: 6.23 | H25: 6.86 | I25: 32 | J25: 215
D26: гор.напиток | E26: Кофейный напиток с молоком | F26: 200 | G26: 3.17 | H26: 2.68 | I26: 9.98 | J26: 60.1
D29: итого | F29: =F23+F24+F25+F26 -> 500 | G29: =SUM(G23:G28) -> 19.42 | H29: =SUM(H23:H28) -> 18.85 | I29: =SUM(I23:I28) -> 82.51 | J29: =SUM(J23:J28) -> 561.1 | L29: =SUM(L23:L28) -> 37.55
A30: =A23 -> 1 | B30: =B23 -> 2 | C30: Обед | D30: 1 блюдо | E30: Рассольник Ленинградский со сметаной | F30: 205 | G30: 7.74 | H30: 12.82 | I30: 9.76 | J30: 143.9 | L30: 77.59
D31: 2 блюдо | E31: Овощи тушенные с мясом | F31: 200 | G31: 12.69 | H31: 13.53 | I31: 44.88 | J31: 363.45
D32: доп.гарнир | E32: Горошек консервированный | F32: 30 | G32: 0.87 | H32: 0.82 | I32: 1.74 | J32: 17.76
D33: напиток | E33: Напиток из изюма и яблок | F33: 200 | G33: 0.38 | H33: 0.13 | I33: 29.3 | J33: 119.94
D34: хлеб бел. | E34: Хлеб пшеничный | F34: 35 | G34: 2.66 | H34: 0.28 | I34: 17.22 | J34: 82.25
D35: хлеб черн. | E35: Хлеб ржаной | F35: 30 | G35: 1.78 | H35: 0.32 | I35: 10.69 | J35: 53.46
D38: итого | F38: =SUM(F30:F37) -> 700 | G38: =SUM(G30:G37) -> 26.12 | H38: =SUM(H30:H37) -> 27.9 | I38: =SUM(I30:I37) -> 113.59 | J38: =SUM(J30:J37) -> 780.76 | L38: =SUM(L30:L37) -> 77.59
A39: =A23 -> 1 | B39: =B23 -> 2 | C39: Итого за день: | F39: =F29+F38 -> 1200 | G39: =G29+G38 -> 45.54 | H39: =H29+H38 -> 46.75 | I39: =I29+I38 -> 196.1 | J39: =J29+J38 -> 1341.86 | L39: =L29+L38 -> 115.14
A40: 1 | B40: 3 | C40: Завтрак | D40: фрукты | E40: Яблоки | F40: 100 | G40: 0.4 | H40: 0.4 | I40: 9.8 | J40: 47 | L40: 37.55
D41: хлеб бел. | E41: Батон нарезной | F41: 50 | G41: 3.75 | H41: 1.45 | I41: 25.7 | J41: 131
D42: гор.блюдо | E42: Каша молочная гречневая с маслом сливочным | F42: 153 | G42: 14.78 | H42: 17.48 | I42: 36.21 | J42: 375.05
D43: гор.напиток | E43: Чай с сахаром | F43: 200 | G43: 0.07 | H43: 0.02 | I43: 8 | J43: 32
D46: итого | F46: =F40+F41+F42+F43 -> 503 | G46: =SUM(G40:G45) -> 19 | H46: =SUM(H40:H45) -> 19.35 | I46: =SUM(I40:I45) -> 79.71 | J46: =SUM(J40:J45) -> 585.05 | L46: =SUM(L40:L45) -> 37.55
A47: =A40 -> 1 | B47: =B40 -> 3 | C47: Обед | D47: 1 блюдо | E47: Суп-лапша домашняя с картофелем | F47: 200 | G47: 5.05 | H47: 5.43 | I47: 9.3 | J47: 92.6 | L47: 77.59
D48: 2 блюдо | E48: Плов из куриной грудки | F48: 200 | G48: 14.42 | H48: 18.43 | I48: 40.93 | J48: 370.5
D49: доп.гарнир | E49: Кукуруза консервированная | F49: 30 | G49: 0.86 | H49: 1.85 | I49: 2.41 | J49: 29.79
D50: напиток | E50: Кисель | F50: 200 | G50: 0.6 | H50: 0.1 | I50: 30.2 | J50: 143.6
D51: хлеб бел. | E51: Хлеб пшеничный | F51: 25 | G51: 1.9 | H51: 0.2 | I51: 12.3 | J51: 58.75
D52: хлеб черн. | E52: Хлеб ржаной | F52: 45 | G52: 2.97 | H52: 0.54 | I52: 17.82 | J52: 89.1
D55: итого | F55: =SUM(F47:F54) -> 700 | G55: =SUM(G47:G54) -> 25.8 | H55: =SUM(H47:H54) -> 26.55 | I55: =SUM(I47:I54) -> 112.96 | J55: =SUM(J47:J54) -> 784.34 | L55: =SUM(L47:L54) -> 77.59
A56: =A40 -> 1 | B56: =B40 -> 3 | C56: Итого за день: | F56: =F46+F55 -> 1203 | G56: =G46+G55 -> 44.8 | H56: =H46+H55 -> 45.9 | I56: =I46+I55 -> 192.67 | J56: =J46+J55 -> 1369.39 | L56: =L46+L55 -> 115.14
A57: 1 | B57: 4 | C57: Завтрак | D57: сладкое | E57: Печенье | F57: 50 | G57: 3.7 | H57: 4.7 | I57: 16.55 | J57: 203.5 | L57: 37.55
D58: хлеб бел. | E58: Батон нарезной | F58: 65 | G58: 4.87 | H58: 1.88 | I58: 33.38 | J58: 170.13
D59: гор.блюдо | E59: Каша пшенная молочная вязкая с маслом сливочным | F59: 185 | G59: 9.91 | H59: 12.46 | I59: 28.73 | J59: 201.94
D60: гор.напиток | E60: Какао с молоком | F60: 200 | G60: 0.07 | H60: 0.02 | I60: 7.85 | J60: 29.8
D63: итого | F63: =F57+F58+F59+F60 -> 500 | G63: =SUM(G57:G62) -> 18.55 | H63: =SUM(H57:H62) -> 19.06 | I63: =SUM(I57:I62) -> 86.51 | J63: =SUM(J57:J62) -> 605.37 | L63: =SUM(L57:L62) -> 37.55
A64: =A57 -> 1 | B64: =B57 -> 4 | C64: Обед | D64: 1 блюдо | E64: Борщ из свежей капусты с картофелем | F64: 250 | G64: 8.8 | H64: 7.92 | I64: 40.93 | J64: 223.75 | L64: 77.59
D65: 2 блюдо | E65: Запеканка картофельная с мясом | F65: 180 | G65: 13.19 | H65: 19.59 | I65: 28.15 | J65: 340.09
D66: доп.гарнир | E66: Салат из моркови с сахаром | F66: 60 | G66: 0.74 | H66: 0.06 | I66: 6.89 | J66: 49.02
D67: напиток | E67: Напиток из шиповника | F67: 200 | G67: 0.66 | H67: 0.09 | I67: 20.04 | J67: 84.8
D68: хлеб бел. | E68: Хлеб пшеничный | F68: 20 | G68: 1.5 | H68: 0.16 | I68: 9.84 | J68: 47
D69: хлеб черн. | E69: Хлеб ржаной | F69: 20 | G69: 1.32 | H69: 0.24 | I69: 7.92 | J69: 39.6
D72: итого | F72: =SUM(F64:F71) -> 730 | G72: =SUM(G64:G71) -> 26.21 | H72: =SUM(H64:H71) -> 28.06 | I72: =SUM(I64:I71) -> 113.77 | J72: =SUM(J64:J71) -> 784.26 | L72: =SUM(L64:L71) -> 77.59
A73: =A57 -> 1 | B73: =B57 -> 4 | C73: Итого за день: | F73: =F63+F72 -> 1230 | G73: =G63+G72 -> 44.76 | H73: =H63+H72 -> 47.12 | I73: =I63+I72 -> 200.28 | J73: =J63+J72 -> 1389.63 | L73: =L63+L72 -> 115.14
A74: 1 | B74: 5 | C74: Завтрак | D74: фрукты | E74: Апельсины | F74: 100 | G74: 0.9 | H74: 0.2 | I74: 8.1 | J74: 43 | L74: 37.55
D75: хлеб бел. | E75: Батон нарезной | F75: 50 | G75: 3.75 | H75: 1.45 | I75: 25.7 | J75: 131
D76: гор.блюдо | E76: Каша кукурузная молочная | F76: 180 | G76: 13.59 | H76: 17.75 | I76: 43.31 | J76: 350.2
D77: гор.напиток | E77: Чай с сахаром и лимоном | F77: 200 | G77: 0.13 | H77: 0.02 | I77: 8.2 | J77: 34.02
D80: итого | F80: =F74+F75+F76+F77 -> 530 | G80: =SUM(G74:G79) -> 18.37 | H80: =SUM(H74:H79) -> 19.42 | I80: =SUM(I74:I79) -> 85.31 | J80: =SUM(J74:J79) -> 558.22 | L80: =SUM(L74:L79) -> 37.55
A81: =A74 -> 1 | B81: =B74 -> 5 | C81: Обед | D81: 1 блюдо | E81: Суп гороховый с гренками | F81: 210 | G81: 7.49 | H81: 14.58 | I81: 40.36 | J81: 278.62 | L81: 77.59
D82: 2 блюдо | E82: Птица тушеная в сметанно-томатном соусе | F82: 100 | G82: 11.65 | H82: 11.66 | I82: 3.51 | J82: 166
D83: гарнир | E83: Макаронные изделия (рожки) отварные с маслом | F83: 153 | G83: 5.78 | H83: 1.28 | I83: 42.96 | J83: 226.1
D84: напиток | E84: Компот из свежих яблок | F84: 200 | G84: 0.16 | H84: 0.16 | I84: 10.91 | J84: 46.6
D85: хлеб бел. | E85: Хлеб пшеничный | F85: 20 | G85: 1.5 | H85: 0.16 | I85: 9.84 | J85: 47
D86: хлеб черн. | E86: Хлеб ржаной | F86: 20 | G86: 1.32 | H86: 0.24 | I86: 7.92 | J86: 39.6
D89: итого | F89: =SUM(F81:F88) -> 703 | G89: =SUM(G81:G88) -> 27.9 | H89: =SUM(H81:H88) -> 28.08 | I89: =SUM(I81:I88) -> 115.5 | J89: =SUM(J81:J88) -> 803.92 | L89: =SUM(L81:L88) -> 77.59
A90: =A74 -> 1 | B90: =B74 -> 5 | C90: Итого за день: | F90: =F80+F89 -> 1233 | G90: =G80+G89 -> 46.27 | H90: =H80+H89 -> 47.5 | I90: =I80+I89 -> 200.81 | J90: =J80+J89 -> 1362.14 | L90: =L80+L89 -> 115.14
A91: 2 | B91: 6 | C91: Завтрак | D91: сладкое | E91: Печенье | F91: 30 | G91: 2.22 | H91: 2.82 | I91: 21.93 | J91: 122.1 | L91: 37.55
D92: хлеб бел. | E92: Батон нарезной | F92: 70 | G92: 5.25 | H92: 2.03 | I92: 35.98 | J92: 183.4
D93: гор.блюдо | E93: Каша геркулесовая молочная | F93: 200 | G93: 11.23 | H93: 13.86 | I93: 21 | J93: 216
D94: гор.напиток | E94: Чай с сахаром, с яблоком | F94: 200 | G94: 0.11 | H94: 0.06 | I94: 8.97 | J94: 36.68
D97: итого | F97: =F91+F92+F93+F94 -> 500 | G97: =SUM(G91:G96) -> 18.81 | H97: =SUM(H91:H96) -> 18.77 | I97: =SUM(I91:I96) -> 87.88 | J97: =SUM(J91:J96) -> 558.18 | L97: =SUM(L91:L96) -> 37.55
A98: =A91 -> 2 | B98: =B91 -> 6 | C98: Обед | D98: 1 блюдо | E98: Борщ из свежей капусты с картофелем со сметаной | F98: 205 | G98: 5.57 | H98: 8.69 | I98: 18.93 | J98: 191.1 | L98: 77.59
D99: 2 блюдо | E99: Тефтели говяжьи | F99: 90 | G99: 11.62 | H99: 10.37 | I99: 10.1 | J99: 170.42
D100: гарнир | E100: Каша гречневая рассыпчатая с маслом сливочным | F100: 153 | G100: 4.9 | H100: 7.69 | I100: 45.56 | J100: 265.3
D101: напиток | E101: Сок фруктовый (нектар плодовый) | F101: 200 | G101: 1 | H101: 0 | I101: 20.2 | J101: 84.8
D102: хлеб бел. | E102: Хлеб пшеничный | F102: 30 | G102: 2.28 | H102: 0.24 | I102: 14.76 | J102: 70.5
D103: хлеб черн. | E103: Хлеб ржаной | F103: 25 | G103: 1.65 | H103: 0.3 | I103: 9.9 | J103: 49.5
D106: итого | F106: =SUM(F98:F105) -> 703 | G106: =SUM(G98:G105) -> 27.02 | H106: =SUM(H98:H105) -> 27.29 | I106: =SUM(I98:I105) -> 119.45 | J106: =SUM(J98:J105) -> 831.62 | L106: =SUM(L98:L105) -> 77.59
A107: =A91 -> 2 | B107: =B91 -> 6 | C107: Итого за день: | F107: =F97+F106 -> 1203 | G107: =G97+G106 -> 45.83 | H107: =H97+H106 -> 46.06 | I107: =I97+I106 -> 207.33 | J107: =J97+J106 -> 1389.8 | L107: =L97+L106 -> 115.14
A108: 2 | B108: 7 | C108: Завтрак | D108: хлеб бел. | E108: Батон нарезной | F108: 60 | G108: 4.5 | H108: 1.74 | I108: 30.84 | J108: 157.2 | L108: 37.55
D109: хлеб бел. | E109: Бутерброд с маслом сливочным | F109: 40 | G109: 2.36 | H109: 7.49 | I109: 14.89 | J109: 136
D110: гор.блюдо | E110: Каша пшенная молочная | F110: 200 | G110: 11.58 | H110: 9.98 | I110: 28.73 | J110: 243.8
D111: гор.напиток | E111: Чай с сахаром, с шиповником | F111: 200 | G111: 0.13 | H111: 0.02 | I111: 8.2 | J111: 34.02
D114: итого | F114: =F108+F109+F110+F111 -> 500 | G114: =SUM(G108:G113) -> 18.57 | H114: =SUM(H108:H113) -> 19.23 | I114: =SUM(I108:I113) -> 82.66 | J114: =SUM(J108:J113) -> 571.02 | L114: =SUM(L108:L113) -> 37.55
A115: =A108 -> 2 | B115: =B108 -> 7 | C115: Обед | D115: 1 блюдо | E115: Рассольник Ленинградский со сметаной | F115: 205 | G115: 6.74 | H115: 7.82 | I115: 9.76 | J115: 153.9 | L115: 77.59
D116: 2 блюдо | E116: Жаркое из птицы (куриных грудок) | F116: 200 | G116: 15.01 | H116: 17.27 | I116: 51.76 | J116: 393.54
D117: доп. гарнир | E117: Горошек консервированный | F117: 40 | G117: 1.15 | H117: 1.09 | I117: 2.31 | J117: 23.68
D118: напиток | E118: Напиток из изюма и яблок | F118: 200 | G118: 0.38 | H118: 0.13 | I118: 29.03 | J118: 119.94
D119: хлеб бел. | E119: Хлеб пшеничный | F119: 25 | G119: 1.9 | H119: 0.2 | I119: 12.3 | J119: 58.75
D120: хлеб черн. | E120: Хлеб ржаной | F120: 30 | G120: 1.32 | H120: 0.24 | I120: 7.92 | J120: 39.6
D123: итого | F123: =SUM(F115:F122) -> 700 | G123: =SUM(G115:G122) -> 26.5 | H123: =SUM(H115:H122) -> 26.75 | I123: =SUM(I115:I122) -> 113.08 | J123: =SUM(J115:J122) -> 789.41 | L123: =SUM(L115:L122) -> 77.59
A124: =A108 -> 2 | B124: =B108 -> 7 | C124: Итого за день: | F124: =F114+F123 -> 1200 | G124: =G114+G123 -> 45.07 | H124: =H114+H123 -> 45.98 | I124: =I114+I123 -> 195.74 | J124: =J114+J123 -> 1360.43 | L124: =L114+L123 -> 115.14
A125: 2 | B125: 8 | C125: Завтрак | D125: фрукты | E125: Яблоки | F125: 100 | G125: 0.4 | H125: 0.4 | I125: 9.8 | J125: 47 | L125: 37.55
D126: хлеб бел. | E126: Батон нарезной | F126: 45 | G126: 3.38 | H126: 1.31 | I126: 23.13 | J126: 117.9
D127: гор.блюдо | E127: Каша рисовая молочная (вязкая) с маслом сливочным | F127: 155 | G127: 14.48 | H127: 17.32 | I127: 38.52 | J127: 389.33
D128: гор.напиток | E128: Чай с сахаром и лимоном | F128: 200 | G128: 0.13 | H128: 0.02 | I128: 8.2 | J128: 34.02
D131: итого | F131: =F125+F126+F127+F128 -> 500 | G131: =SUM(G125:G130) -> 18.39 | H131: =SUM(H125:H130) -> 19.05 | I131: =SUM(I125:I130) -> 79.65 | J131: =SUM(J125:J130) -> 588.25 | L131: =SUM(L125:L130) -> 37.55
A132: =A125 -> 2 | B132: =B125 -> 8 | C132: Обед | D132: 1 блюдо | E132: Суп картофельный с горохом | F132: 200 | G132: 9.39 | H132: 15.22 | I132: 13.23 | J132: 248.6 | L132: 77.59
D133: 2 блюдо | E133: Биточки рыбные | F133: 90 | G133: 5.48 | H133: 9.57 | I133: 4.71 | J133: 64.33
D134: гарнир | E134: Макаронные изделия (рожки) отварные с маслом сливочным | F134: 153 | G134: 5.78 | H134: 1.28 | I134: 42.96 | J134: 226.1
D135: напиток | E135: Напиток из сухофруктов | F135: 200 | G135: 0.7 | H135: 0.1 | I135: 32 | J135: 132.8
D136: хлеб бел. | E136: Хлеб пшеничный | F136: 30 | G136: 2.28 | H136: 0.24 | I136: 14.76 | J136: 70.5
D137: хлеб черн. | E137: Хлеб ржаной | F137: 30 | G137: 1.98 | H137: 0.36 | I137: 11.88 | J137: 59.4
D140: итого | F140: =SUM(F132:F139) -> 703 | G140: =SUM(G132:G139) -> 25.61 | H140: =SUM(H132:H139) -> 26.77 | I140: =SUM(I132:I139) -> 119.54 | J140: =SUM(J132:J139) -> 801.73 | L140: =SUM(L132:L139) -> 77.59
A141: =A125 -> 2 | B141: =B125 -> 8 | C141: Итого за день: | F141: =F131+F140 -> 1203 | G141: =G131+G140 -> 44 | H141: =H131+H140 -> 45.82 | I141: =I131+I140 -> 199.19 | J141: =J131+J140 -> 1389.98 | L141: =L131+L140 -> 115.14
A142: 2 | B142: 9 | C142: Завтрак | D142: хлеб бел. | E142: Блины с маслом сливочным | F142: 50 | G142: 2.52 | H142: 4.31 | I142: 14.02 | J142: 105 | L142: 37.55
D143: хлеб бел. | E143: Батон нарезной | F143: 50 | G143: 3.75 | H143: 1.45 | I143: 25.7 | J143: 131
D144: гор.блюдо | E144: Каша пшеничная молочная | F144: 200 | G144: 12.58 | H144: 13.98 | I144: 38.7 | J144: 293.8
D145: гор.напиток | E145: Чай с сахаром | F145: 200 | G145: 0.07 | H145: 0.02 | I145: 8 | J145: 32
D148: итого | F148: =F142+F143+F144+F145 -> 500 | G148: =SUM(G142:G147) -> 18.92 | H148: =SUM(H142:H147) -> 19.76 | I148: =SUM(I142:I147) -> 86.42 | J148: =SUM(J142:J147) -> 561.8 | L148: =SUM(L142:L147) -> 37.55
A149: =A142 -> 2 | B149: =B142 -> 9 | C149: Обед | D149: 1 блюдо | E149: Щи из св.капусты с картофелем | F149: 200 | G149: 8.61 | H149: 12.96 | I149: 26.32 | J149: 271.8 | L149: 77.59
D150: 2 блюдо | E150: Котлеты Нежные из куриных грудок | F150: 90 | G150: 12.89 | H150: 8.41 | I150: 28.78 | J150: 201.8
D151: гарнир | E151: Картофельное пюре с маслом сливочным | F151: 153 | G151: 1.09 | H151: 6.98 | I151: 10.48 | J151: 147.05
D152: напиток | E152: Кисель | F152: 200 | G152: 0.6 | H152: 0.1 | I152: 30.2 | J152: 103.6
D153: хлеб бел. | E153: Хлеб пшеничный | F153: 35 | G153: 2.66 | H153: 0.28 | I153: 17.22 | J153: 82.25
D154: хлеб черн. | E154: Хлеб ржаной | F154: 25 | G154: 1.65 | H154: 0.3 | I154: 9.9 | J154: 49.5
D157: итого | F157: =SUM(F149:F156) -> 703 | G157: =SUM(G149:G156) -> 27.5 | H157: =SUM(H149:H156) -> 29.03 | I157: =SUM(I149:I156) -> 122.9 | J157: =SUM(J149:J156) -> 856 | L157: =SUM(L149:L156) -> 77.59
A158: =A142 -> 2 | B158: =B142 -> 9 | C158: Итого за день: | F158: =F148+F157 -> 1203 | G158: =G148+G157 -> 46.42 | H158: =H148+H157 -> 48.79 | I158: =I148+I157 -> 209.32 | J158: =J148+J157 -> 1417.8 | L158: =L148+L157 -> 115.14
A159: 2 | B159: 10 | C159: Завтрак | D159: фрукты | E159: Яблоки | F159: 100 | G159: 0.4 | H159: 0.4 | I159: 9.8 | J159: 47 | L159: 37.55
D160: хлеб бел. | E160: Батон нарезной | F160: 50 | G160: 3.76 | H160: 1.74 | I160: 30.84 | J160: 132
D161: гор.блюдо | E161: Запеканка из творога с повидлом | F161: 150 | G161: 15.1 | H161: 14.48 | I161: 36.67 | J161: 367.4
D162: гор.напиток | E162: Какао с молоком | F162: 200 | G162: 0.08 | H162: 4.54 | I162: 10.61 | J162: 38.6
D165: итого | F165: =F159+F160+F161+F162 -> 500 | G165: =SUM(G159:G164) -> 19.34 | H165: =SUM(H159:H164) -> 21.16 | I165: =SUM(I159:I164) -> 87.92 | J165: =SUM(J159:J164) -> 585 | L165: =SUM(L159:L164) -> 37.55
A166: =A159 -> 2 | B166: =B159 -> 10 | C166: Обед | D166: 1 блюдо | E166: Суп картофельный с вермешелью | F166: 200 | G166: 8.15 | H166: 9.27 | I166: 43.96 | J166: 254.6 | L166: 77.59
D167: 2 блюдо | E167: Плов из куриной грудки | F167: 200 | G167: 14.42 | H167: 18.43 | I167: 40.93 | J167: 370.5
D168: доп.гарнир | E168: Свекла отварная (дольками) | F168: 60 | G168: 0.9 | H168: 0.02 | I168: 5.27 | J168: 24.77
D169: напиток | E169: Компот из свежих яблок | F169: 200 | G169: 0.16 | H169: 0.16 | I169: 10.91 | J169: 46.6
D170: хлеб бел. | E170: Хлеб пшеничный | F170: 20 | G170: 1.5 | H170: 0.16 | I170: 9.84 | J170: 47
D171: хлеб черн. | E171: Хлеб ржаной | F171: 20 | G171: 1.32 | H171: 0.24 | I171: 7.92 | J171: 39.6
D174: итого | F174: =SUM(F166:F173) -> 700 | G174: =SUM(G166:G173) -> 26.45 | H174: =SUM(H166:H173) -> 28.28 | I174: =SUM(I166:I173) -> 118.83 | J174: =SUM(J166:J173) -> 783.07 | L174: =SUM(L166:L173) -> 77.59
A175: =A159 -> 2 | B175: =B159 -> 10 | C175: Итого за день: | F175: =F165+F174 -> 1200 | G175: =G165+G174 -> 45.79 | H175: =H165+H174 -> 49.44 | I175: =I165+I174 -> 206.75 | J175: =J165+J174 -> 1368.07 | L175: =L165+L174 -> 115.14
C176: Среднее значение за период: | F176: =(F22+F39+F56+F73+F90+F107+F124+F141+F158+F175)/(IF(F22=0,0,1)+IF(F39=0,0,1)+IF(F56=0,0,1)+IF(F73=0,0,1)+IF(F90=0,0,1)+IF(F107=0,0,1)+IF(F124=0,0,1)+IF(F141=0,0,1)+IF(F158=0,0,1)+IF(F175=0,0,1)) -> 1209.3 | G176: =(G22+G39+G56+G73+G90+G107+G124+G141+G158+G175)/(IF(G22=0,0,1)+IF(G39=0,0,1)+IF(G56=0,0,1)+IF(G73=0,0,1)+IF(G90=0,0,1)+IF(G107=0,0,1)+IF(G124=0,0,1)+IF(G141=0,0,1)+IF(G158=0,0,1)+IF(G175=0,0,1)) -> 45.267 | H176: =(H22+H39+H56+H73+H90+H107+H124+H141+H158+H175)/(IF(H22=0,0,1)+IF(H39=0,0,1)+IF(H56=0,0,1)+IF(H73=0,0,1)+IF(H90=0,0,1)+IF(H107=0,0,1)+IF(H124=0,0,1)+IF(H141=0,0,1)+IF(H158=0,0,1)+IF(H175=0,0,1)) -> 47.031 | I176: =(I22+I39+I56+I73+I90+I107+I124+I141+I158+I175)/(IF(I22=0,0,1)+IF(I39=0,0,1)+IF(I56=0,0,1)+IF(I73=0,0,1)+IF(I90=0,0,1)+IF(I107=0,0,1)+IF(I124=0,0,1)+IF(I141=0,0,1)+IF(I158=0,0,1)+IF(I175=0,0,1)) -> 201.159 | J176: =(J22+J39+J56+J73+J90+J107+J124+J141+J158+J175)/(IF(J22=0,0,1)+IF(J39=0,0,1)+IF(J56=0,0,1)+IF(J73=0,0,1)+IF(J90=0,0,1)+IF(J107=0,0,1)+IF(J124=0,0,1)+IF(J141=0,0,1)+IF(J158=0,0,1)+IF(J175=0,0,1)) -> 1375.42 | L176: =(L22+L39+L56+L73+L90+L107+L124+L141+L158+L175)/(IF(L22=0,0,1)+IF(L39=0,0,1)+IF(L56=0,0,1)+IF(L73=0,0,1)+IF(L90=0,0,1)+IF(L107=0,0,1)+IF(L124=0,0,1)+IF(L141=0,0,1)+IF(L158=0,0,1)+IF(L175=0,0,1)) -> 115.14
